bitfinex/quotes_SOLUSD_20240729
["timestamp","ask_amount","ask_price","bid_price","bid_amount"]
[1722213442735,0.34,188.11,188.04,0.16]
[1722213443737,15.96,188.1,188.04,0.16]
[1722213443942,0.34,188.09,188.04,0.16]
[1722213445028,0.34,188.1,188.04,0.16]
[1722213445241,0.34,188.11,188.04,0.16]
[1722213445624,24.5928,188.11,188.04,0.16]
[1722213445955,15.96,188.1,188.04,0.16]
[1722213446126,20.34,188.09,188.04,0.16]
[1722213446838,0.34,188.09,188.04,0.16]
[1722213448047,6.5762,188.12,188.04,0.16]
[1722213450450,0.34,188.11,188.04,0.16]
[1722213450946,6.5762,188.12,188.06,24.44]
[1722213451150,15.8466,188.14,188.09,24.44]
[1722213451351,6.2285,188.16,188.1,1.06326119]
[1722213451744,6.2285,188.16,188.09,24.44]
[1722213452550,6.2285,188.16,188.06,24.44]
[1722213453355,0.34,188.15,188.06,24.44]
[1722213453531,0.34,188.15,188.04,0.16]
[1722213456130,20.5519,188.15,188.04,0.16]
[1722213456445,30.9649,188.12,188.04,0.16]
[1722213456650,0.34,188.11,188.04,0.16]
[1722213459327,6.2285,188.16,188.08,24.44]
[1722213459536,6.2285,188.16,188.11,24.44]
[1722213459734,6.2285,188.16,188.14,24.44]
[1722213461252,0.34,188.15,188.14,24.44]
[1722213461459,0.34,188.15,188.11,24.44]
[1722213463041,0.34,188.15,188.08,24.44]
[1722213465132,24.251,188.19,188.04,0.16]
[1722213465133,15.3671,188.35,188.15,15.8371]
[1722213465331,6.5071,188.34,188.28,24.44]
[1722213465933,6.5071,188.34,188.31,24.44]
[1722213466259,6.5071,188.34,188.28,24.44]
[1722213466843,6.5071,188.34,188.25,24.44]
[1722213467159,22.4671,188.34,188.2,27.48]
[1722213467357,35.96,188.33,188.21,45.0]
[1722213467539,35.96,188.33,188.19,27.48]
[1722213467858,0.34,188.32,188.2,45.0]
[1722213468555,56.3,188.33,188.2,45.0]
[1722213468939,36.3,188.33,188.2,45.0]
[1722213469154,16.3,188.33,188.2,45.0]
[1722213470432,0.34,188.33,188.23,27.48]
[1722213471032,6.6156,188.4,188.23,27.48]
[1722213471234,6.6156,188.4,188.29,27.48]
[1722213472641,0.17,188.39,188.29,27.48]
[1722213472842,0.34,188.39,188.29,27.48]
[1722213473041,6.6156,188.4,188.29,27.48]
[1722213473266,10.8621,188.4,188.29,27.48]
[1722213473562,22.5756,188.4,188.29,27.48]
[1722213473859,4.2465,188.39,188.29,27.48]
[1722213474272,0.34,188.38,188.29,27.48]
[1722213474836,0.34,188.39,188.29,27.48]
[1722213477263,40.5466,188.39,188.29,27.48]
[1722213477657,6.6156,188.4,188.29,27.48]
[1722213477859,6.6156,188.4,188.3,45.0]
[1722213478769,6.6156,188.4,188.33,27.48]
[1722213480760,0.34,188.39,188.33,27.48]
[1722213480960,0.34,188.39,188.3,45.0]
[1722213483858,6.6156,188.4,188.3,45.0]
[1722213484186,6.425,188.45,188.37,27.48]
[1722213484355,6.425,188.45,188.38,45.0]
[1722213484768,6.425,188.45,188.37,27.48]
[1722213485263,15.4487,188.47,188.38,45.0]
[1722213485470,15.4487,188.47,188.39,1.0614969]
[1722213486197,15.4487,188.47,188.38,45.0]
[1722213486495,6.425,188.49,188.38,45.0]
[1722213487356,4.2447,188.47,188.38,45.0]
[1722213487556,6.425,188.49,188.38,45.0]
[1722213487979,6.425,188.49,188.39,1.06141154]
[1722213488274,6.425,188.49,188.38,45.0]
[1722213488452,10.6692,188.49,188.38,45.0]
[1722213488654,6.425,188.49,188.38,45.0]
[1722213488885,10.6692,188.49,188.38,45.0]
[1722213489056,0.34,188.48,188.38,45.0]
[1722213489764,4.5845,188.48,188.38,45.0]
[1722213490271,4.2447,188.47,188.38,45.0]
[1722213490478,0.34,188.46,188.38,45.0]
[1722213490776,0.34,188.46,188.39,1.06153288]
[1722213490985,6.425,188.49,188.41,27.48]
[1722213491178,6.425,188.49,188.44,24.38]
[1722213491482,0.6121613,188.51,188.38,45.0]
[1722213491668,4.2442,188.5,188.41,24.38]
[1722213491873,0.6121613,188.51,188.42,45.0]
[1722213492886,0.34,188.5,188.42,45.0]
[1722213493266,4.5841,188.5,188.42,45.0]
[1722213493570,0.34,188.5,188.41,24.38]
[1722213493767,0.6121613,188.51,188.44,24.38]
[1722213493979,0.6121613,188.51,188.47,24.38]
[1722213494986,0.34,188.5,188.47,24.38]
[1722213495565,0.6121613,188.51,188.47,24.38]
[1722213495872,0.6121613,188.51,188.48,45.0]
[1722213496269,0.6121613,188.51,188.47,24.38]
[1722213498270,0.6121613,188.51,188.48,45.0]
[1722213503082,0.6121613,188.51,188.47,24.38]
[1722213503279,0.34,188.5,188.47,24.38]
[1722213508072,0.6121613,188.51,188.47,24.38]
[1722213508275,0.6121613,188.51,188.48,45.0]
[1722213508680,0.6121613,188.51,188.47,24.38]
[1722213509485,0.34,188.5,188.47,24.38]
[1722213509891,0.17,188.5,188.47,24.38]
[1722213510299,0.34,188.5,188.47,24.38]
[1722213511383,0.17,188.5,188.47,24.38]
[1722213511880,0.34,188.5,188.47,24.38]
[1722213518097,0.17,188.5,188.47,24.38]
[1722213518297,0.34,188.5,188.47,24.38]
[1722213521303,0.34,188.5,188.41,2.11364212]
[1722213521304,0.34,188.5,188.49,12.19]
[1722213522393,0.34,188.5,188.41,2.11364212]
[1722213522601,0.34,188.5,188.49,12.19]
[1722213523077,0.34,188.5,188.48,12.19]
[1722213524397,0.34,188.5,188.49,12.19]
[1722213532021,21.778,188.5,188.39,2.08468722]
[1722213532316,21.778,188.5,188.46,12.19]
[1722213533900,4.2446,188.48,188.46,12.19]
[1722213534100,0.34,188.47,188.45,12.19]
[1722213536116,0.34,188.47,188.46,12.19]
[1722213536613,0.17,188.47,188.46,12.19]
[1722213536818,0.6121613,188.51,188.46,12.19]
[1722213537020,0.6121613,188.51,188.49,12.19]
[1722213537219,0.6121613,188.51,188.5,12.19]
[1722213537392,0.6121613,188.51,188.48,12.19]
[1722213538419,0.34,188.5,188.48,12.19]
[1722213540327,0.34,188.5,188.49,12.19]
[1722213541420,0.34,188.5,188.48,12.19]
[1722213541900,0.34,188.5,188.47,12.19]
[1722213542324,0.34,188.5,188.48,12.19]
[1722213543026,0.34,188.5,188.39,45.0]
[1722213543027,0.34,188.5,188.46,12.19]
[1722213543608,0.34,188.5,188.45,12.19]
[1722213544207,0.34,188.5,188.47,12.19]
[1722213544725,0.6121613,188.51,188.47,12.19]
[1722213544936,0.6121613,188.51,188.48,12.19]
[1722213546134,0.34,188.5,188.48,12.19]
[1722213546514,0.34,188.5,188.47,12.19]
[1722213546831,0.34,188.5,188.38,24.53777162]
[1722213547031,0.34,188.5,188.45,12.19]
[1722213547441,0.34,188.5,188.47,12.19]
[1722213547812,0.34,188.5,188.48,12.19]
[1722213548014,0.6121613,188.51,188.49,12.19]
[1722213548323,0.6121613,188.51,188.5,12.19]
[1722213549314,0.6121613,188.51,188.49,12.19]
[1722213549807,0.6121613,188.51,188.5,12.19]
[1722213550219,0.9521613,188.51,188.5,12.19]
[1722213554844,0.9521613,188.51,188.49,12.19]
[1722213555017,0.17,188.5,188.49,12.19]
[1722213555715,0.17,188.5,188.48,12.19]
[1722213555917,0.17,188.5,188.49,12.19]
[1722213557648,0.34,188.5,188.48,12.19]
[1722213557851,0.34,188.5,188.49,12.19]
[1722213558147,0.34,188.5,188.48,12.19]
[1722213558522,0.34,188.5,188.49,12.19]
[1722213558918,0.34,188.5,188.48,12.19]
[1722213559646,0.34,188.5,188.47,12.19]
[1722213560928,0.34,188.5,188.39,45.0]
[1722213561240,0.34,188.5,188.46,12.19]
[1722213562025,0.34,188.5,188.38,24.53777162]
[1722213562230,0.34,188.5,188.46,12.19]
[1722213562430,0.34,188.5,188.38,24.53777162]
[1722213562625,0.34,188.5,188.46,12.19]
[1722213563039,0.34,188.5,188.38,24.53777162]
[1722213563334,0.34,188.5,188.46,12.19]
[1722213566063,0.34,188.5,188.47,12.19]
[1722213566230,0.34,188.5,188.48,12.19]
[1722213566428,0.34,188.5,188.47,12.19]
[1722213567054,0.34,188.5,188.46,12.19]
[1722213567561,0.34,188.5,188.45,12.19]
[1722213568228,0.34,188.5,188.46,12.19]
[1722213568823,0.34,188.5,188.47,12.19]
[1722213569827,0.34,188.5,188.46,12.19]
[1722213570657,0.34,188.5,188.47,12.19]
[1722213571756,0.34,188.5,188.45,12.19]
[1722213572254,0.34,188.5,188.39,45.0]
[1722213572255,0.6121613,188.51,188.49,12.19]
[1722213572558,21.9462,188.57,188.46,1.06126141]
[1722213572559,21.9462,188.57,188.5,12.19]
[1722213572763,21.9462,188.57,188.53,12.19]
[1722213573063,21.9462,188.57,188.51,12.19]
[1722213573237,21.9462,188.57,188.52,12.19]
[1722213574350,26.1886,188.57,188.51,12.19]
[1722213574556,21.9462,188.57,188.5,12.19]
[1722213574737,26.1887,188.57,188.5,12.19]
[1722213574940,38.3787,188.57,188.49,12.19]
[1722213575463,0.34,188.56,188.49,12.19]
[1722213575766,0.34,188.56,188.5,12.19]
[1722213576965,0.34,188.56,188.51,12.19]
[1722213577946,0.34,188.56,188.52,12.19]
[1722213578158,0.34,188.56,188.53,12.19]
[1722213578361,0.34,188.56,188.54,12.19]
[1722213578566,0.34,188.56,188.53,12.19]
[1722213578877,0.34,188.56,188.52,12.19]
[1722213579236,0.34,188.56,188.53,12.19]
[1722213579559,0.34,188.56,188.54,12.19]
[1722213579973,0.34,188.56,188.53,12.19]
[1722213580143,0.34,188.56,188.52,12.19]
[1722213580959,0.34,188.56,188.53,12.19]
[1722213581651,0.34,188.56,188.54,12.19]
[1722213582167,0.34,188.56,188.53,12.19]
[1722213584356,0.34,188.56,188.46,70.8876]
[1722213584666,0.34,188.56,188.53,12.19]
[1722213594666,0.34,188.56,188.46,22.1276]
[1722213594864,0.34,188.56,188.46,64.5147]
[1722213595178,0.34,188.57,188.51,12.19]
[1722213595370,0.34,188.57,188.46,64.5147]
[1722213595552,0.34,188.57,188.51,12.19]
[1722213596465,0.34,188.57,188.53,12.19]
[1722213596858,0.34,188.57,188.46,48.76]
[1722213596859,0.34,188.57,188.52,12.19]
[1722213598679,0.34,188.57,188.51,12.19]
[1722213599247,4.5825,188.57,188.51,12.19]
[1722213602465,15.8519,188.58,188.53,12.19]
[1722213604279,0.34,188.57,188.46,48.76]
[1722213604453,0.34,188.57,188.52,12.19]
[1722213605466,0.34,188.57,188.53,12.19]
[1722213607187,0.34,188.57,188.52,12.19]
[1722213607563,0.34,188.57,188.46,48.76]
[1722213607564,0.34,188.57,188.51,12.19]
[1722213608870,0.34,188.57,188.52,12.19]
[1722213609959,0.34,188.57,188.46,48.76]
[1722213610162,0.34,188.57,188.51,12.19]
[1722213610581,24.5824,188.57,188.51,12.19]
[1722213610788,4.5824,188.57,188.51,12.19]
[1722213610968,24.5825,188.57,188.51,12.19]
[1722213611760,28.15,188.56,188.48,12.19]
[1722213611963,32.53,188.55,188.48,12.19]
[1722213612967,12.53,188.55,188.48,12.19]
[1722213613163,0.34,188.55,188.49,12.19]
[1722213613364,0.34,188.55,188.42,22.8011]
[1722213613365,0.34,188.55,188.51,12.19]
[1722213613564,15.8519,188.58,188.52,12.19]
[1722213614268,15.8519,188.58,188.46,12.19]
[1722213614469,15.8519,188.58,188.54,12.19]
[1722213614677,20.0,188.61,188.57,12.19]
[1722213614994,20.0,188.61,188.5,15.812]
[1722213615199,20.0,188.61,188.55,12.19]
[1722213615485,35.96,188.61,188.55,12.19]
[1722213615886,0.34,188.6,188.55,12.19]
[1722213617961,28.49,188.6,188.53,12.19]
[1722213618167,32.7317,188.6,188.52,12.19]
[1722213618387,51.87534501,188.6,188.52,12.19]
[1722213618576,4.2421,188.59,188.52,12.19]
[1722213618771,0.34,188.58,188.52,12.19]
[1722213619093,20.34,188.58,188.52,12.19]
[1722213619281,36.3,188.58,188.52,12.19]
[1722213619474,36.3,188.58,188.46,64.1055]
[1722213619475,28.49,188.58,188.51,12.19]
[1722213619663,36.3,188.58,188.52,12.19]
[1722213620072,36.3,188.58,188.46,64.1055]
[1722213620277,28.49,188.58,188.51,12.19]
[1722213620482,48.49,188.58,188.51,12.19]
[1722213620792,52.7322,188.58,188.46,15.3455]
[1722213621098,37.4048,188.55,188.49,12.19]
[1722213621267,0.34,188.54,188.49,12.19]
[1722213622382,48.49,188.54,188.41,16.205]
[1722213622766,52.7331,188.54,188.47,12.19]
[1722213623091,59.6935304,188.54,188.48,12.19]
[1722213623302,40.5431,188.54,188.48,12.19]
[1722213623481,52.3933,188.53,188.41,16.205]
[1722213623666,0.34,188.52,188.46,12.19]
[1722213624192,0.34,188.52,188.41,12.19]
[1722213624193,4.2449,188.46,188.41,12.19]
[1722213624395,0.34,188.45,188.33,6.4343]
[1722213624579,0.34,188.45,188.42,12.19]
[1722213625073,0.34,188.46,188.42,12.19]
[1722213625272,75.6092,188.52,188.37,12.19]
[1722213625273,22.2864,188.52,188.45,12.19]
[1722213625494,22.2864,188.52,188.48,12.19]
[1722213625677,22.2864,188.52,188.49,12.19]
[1722213625999,22.2864,188.52,188.48,12.19]
[1722213626304,22.2864,188.52,188.47,12.19]
[1722213626478,22.2864,188.52,188.48,12.19]
[1722213626883,22.2864,188.52,188.33,24.49708905]
[1722213626884,38.2464,188.52,188.35,16.4457]
[1722213627087,4.2444,188.49,188.44,12.19]
[1722213627285,35.96,188.49,188.44,12.19]
[1722213627591,40.2044,188.49,188.44,12.19]
[1722213628075,40.2044,188.49,188.43,12.19]
[1722213628275,0.34,188.48,188.43,12.19]
[1722213628597,0.34,188.48,188.42,12.19]
[1722213629198,0.34,188.48,188.33,8.52837883]
[1722213629199,55.96,188.45,188.33,6.4343]
[1722213629382,55.96,188.45,188.37,12.19]
[1722213629383,39.0996,188.44,188.37,12.19]
[1722213629701,55.535,188.44,188.37,12.19]
[1722213629899,75.535,188.44,188.37,12.19]
[1722213630408,4.2464,188.4,188.3,15.044]
[1722213630699,36.4362,188.4,188.33,12.19]
[1722213630902,36.4362,188.4,188.16,15.044]
[1722213630903,35.96,188.36,188.19,15.0962]
[1722213631207,20.0,188.3,188.25,12.19]
[1722213631373,0.34,188.29,188.23,12.19]
[1722213631569,20.34,188.29,188.24,12.19]
[1722213631981,20.34,188.29,188.19,48.76]
[1722213632178,20.0,188.28,188.14,6.4972]
[1722213632404,0.34,188.27,188.22,12.19]
[1722213632912,4.2501,188.23,188.09,6.4972]
[1722213633076,58.8396,188.26,188.17,12.19]
[1722213633077,35.96,188.21,188.17,12.19]
[1722213633273,20.0,188.19,188.16,12.19]
[1722213633470,0.34,188.18,188.1,48.76]
[1722213634382,0.34,188.18,188.17,12.19]
[1722213635289,0.34,188.18,188.11,24.46]
[1722213636477,0.34,188.18,188.14,24.46]
[1722213637099,0.34,188.19,188.14,24.46]
[1722213637301,16.0577,188.18,188.04,0.7721613]
[1722213637604,0.34,188.17,188.1,24.46]
[1722213638196,0.34,188.17,188.11,24.46]
[1722213638398,0.34,188.17,188.09,24.46]
[1722213640002,6.3144,188.16,188.09,24.46]
[1722213640309,0.34,188.15,188.09,24.46]
[1722213642300,20.0,188.2,188.12,24.46]
[1722213643578,6.5552,188.21,188.12,24.46]
[1722213645101,20.0,188.2,188.12,24.46]
[1722213645516,15.96,188.35,188.19,24.46]
[1722213645815,6.441,188.44,188.2,114.16398436]
[1722213646109,6.441,188.44,188.33,24.46]
[1722213646413,6.441,188.44,188.3,24.46]
[1722213646414,20.0,188.43,188.3,24.46]
[1722213646717,15.96,188.42,188.3,24.46]
[1722213647086,20.0,188.4,188.3,24.46]
[1722213647288,35.96,188.39,188.27,24.46]
[1722213647509,35.96,188.38,188.27,24.46]
[1722213647701,35.96,188.35,188.15,1.06227201]
[1722213648008,0.34,188.34,188.24,24.46]
[1722213648791,0.17,188.34,188.27,24.46]
[1722213649483,20.0,188.39,188.27,24.46]
[1722213649687,20.0,188.39,188.3,24.46]
[1722213649985,20.0,188.41,188.3,24.46]
[1722213650186,35.96,188.42,188.3,24.46]
[1722213650710,10.6865,188.44,188.3,24.46]
[1722213650711,35.96,188.39,188.3,24.46]
[1722213651104,40.2069,188.37,188.27,24.46]
[1722213651321,0.34,188.36,188.27,24.46]
[1722213651822,45.34,188.36,188.27,24.46]
[1722213654116,35.96,188.35,188.24,24.46]
[1722213654423,0.34,188.34,188.24,24.46]
[1722213655005,15.96,188.33,188.24,24.46]
[1722213655208,0.34,188.32,188.24,24.46]
[1722213655424,20.0,188.37,188.24,24.46]
[1722213655604,20.0,188.37,188.13,38.5169]
[1722213655605,6.441,188.44,188.31,24.46]
[1722213655911,10.6865,188.44,188.31,24.46]
[1722213656113,6.441,188.44,188.31,24.46]
[1722213656492,35.96,188.43,188.31,24.46]
[1722213656695,40.2056,188.43,188.31,24.46]
[1722213657199,20.2056,188.43,188.31,24.46]
[1722213657921,45.34,188.42,188.31,24.46]
[1722213658288,40.2062,188.41,188.31,24.46]
[1722213658504,45.34,188.4,188.31,24.46]
[1722213659101,35.96,188.39,188.31,24.46]
[1722213659310,45.34,188.38,188.28,24.46]
[1722213659724,45.34,188.38,188.2,1.061985]
[1722213659725,42.401,188.44,188.2,1.061985]
[1722213660027,22.401,188.44,188.33,24.46]
[1722213660200,6.441,188.44,188.33,24.46]
[1722213660514,26.441,188.44,188.33,24.46]
[1722213660718,42.401,188.44,188.33,24.46]
[1722213661597,45.34,188.43,188.33,24.46]
[1722213662214,20.0,188.42,188.22,1.06183364]
[1722213662417,61.3,188.41,188.3,24.46]
[1722213663525,6.441,188.44,188.33,24.46]
[1722213664001,6.441,188.44,188.36,24.46]
[1722213664198,6.5847,188.58,188.43,48.92]
[1722213664425,16.0761,188.6,188.5,24.46]
[1722213666201,20.0,188.63,188.53,24.46]
[1722213667126,35.96,188.63,188.53,24.46]
[1722213667293,35.96,188.63,188.49,27.4]
[1722213668922,61.3,188.62,188.49,27.4]
[1722213671013,0.34,188.62,188.49,27.4]
[1722213671215,0.34,188.62,188.53,27.4]
[1722213673533,45.34,188.62,188.46,27.4]
[1722213673719,45.34,188.62,188.47,65.0]
[1722213675408,35.96,188.61,188.47,65.0]
[1722213675613,45.17,188.6,188.51,27.4]
[1722213675835,0.17,188.59,188.51,27.4]
[1722213682946,36.13,188.59,188.51,27.4]
[1722213683122,0.17,188.58,188.51,27.4]
[1722213683329,45.17,188.58,188.51,27.4]
[1722213683529,0.17,188.57,188.51,27.4]
[1722213684348,15.6702,188.56,188.51,27.4]
[1722213684647,0.34,188.55,188.51,27.4]
[1722213687447,0.34,188.55,188.46,27.4]
[1722213687748,6.7561,188.55,188.46,27.4]
[1722213689161,6.7561,188.55,188.5,24.36]
[1722213689362,6.7561,188.55,188.37,1.06116462]
[1722213689363,35.96,188.52,188.37,1.06116462]
[1722213689670,35.96,188.52,188.42,24.36]
[1722213689826,45.34,188.51,188.42,24.36]
[1722213690962,0.34,188.51,188.45,24.36]
[1722213700239,0.34,188.51,188.48,24.36]
[1722213700441,6.4161,188.55,188.48,24.36]
[1722213700638,15.6702,188.56,188.51,24.36]
[1722213700859,41.9661,188.6,188.51,24.36]
[1722213702973,0.34,188.59,188.51,24.36]
[1722213703649,45.34,188.59,188.51,24.36]
[1722213706366,0.34,188.59,188.51,24.36]
[1722213710468,0.34,188.59,188.45,6.4897]
[1722213710469,0.34,188.59,188.54,24.36]
[1722213711463,16.0315,188.61,188.54,24.36]
[1722213711464,0.34,188.58,188.54,24.36]
[1722213711664,0.34,188.6,188.54,24.36]
[1722213712051,45.34,188.6,188.54,24.36]
[1722213713065,45.34,188.6,188.51,24.36]
[1722213714375,81.3,188.6,188.51,24.36]
[1722213716253,45.34,188.6,188.51,24.36]
[1722213716675,81.3,188.6,188.51,24.36]
[1722213724865,35.96,188.59,188.51,24.36]
[1722213725068,45.34,188.58,188.51,24.36]
[1722213725360,61.3,188.58,188.51,24.36]
[1722213725564,6.0423,188.57,188.51,24.36]
[1722213725765,0.34,188.56,188.51,24.36]
[1722213726289,20.34,188.56,188.51,24.36]
[1722213726482,65.34,188.56,188.51,24.36]
[1722213727459,65.34,188.56,188.48,24.36]
[1722213731163,65.34,188.56,188.54,12.18]
[1722213731990,0.34,188.56,188.55,12.18]
[1722213736094,0.34,188.56,188.54,12.18]
[1722213737191,20.34,188.56,188.46,48.72]
[1722213737403,45.0,188.55,188.51,12.18]
[1722213737696,0.17,188.54,188.51,12.18]
[1722213737901,0.17,188.54,188.53,12.18]
[1722213738476,0.34,188.54,188.53,12.18]
[1722213745078,35.96,188.59,188.53,12.18]
[1722213745079,15.96,188.59,188.53,12.18]
[1722213745279,15.96,188.59,188.46,48.72]
[1722213745280,45.0,188.58,188.54,12.18]
[1722213745673,45.0,188.58,188.55,12.18]
[1722213746783,45.0,188.58,188.54,12.18]
[1722213747300,0.34,188.57,188.54,12.18]
[1722213748581,0.34,188.57,188.46,50.86183248]
[1722213748779,0.34,188.57,188.54,12.18]
[1722213749084,0.34,188.57,188.55,12.18]
[1722213749406,20.34,188.57,188.53,12.18]
[1722213749586,45.0,188.56,188.53,12.18]
[1722213749897,0.17,188.55,188.53,12.18]
[1722213751376,0.34,188.55,188.53,12.18]
[1722213751597,15.96,188.54,188.4,6.5982]
[1722213751799,45.0,188.53,188.5,12.18]
[1722213751985,45.0,188.53,188.51,12.18]
[1722213752693,0.34,188.52,188.51,12.18]
[1722213753381,0.34,188.52,188.46,12.18]
[1722213753382,0.34,188.52,188.5,12.18]
[1722213754490,0.34,188.52,188.51,12.18]
[1722213755000,15.96,188.56,188.51,12.18]
[1722213755296,45.0,188.55,188.52,12.18]
[1722213756300,0.34,188.54,188.52,12.18]
[1722213757293,0.34,188.54,188.51,12.18]
[1722213760601,0.34,188.54,188.5,12.18]
[1722213761385,0.34,188.54,188.53,12.18]
[1722213761590,15.96,188.59,188.53,12.18]
[1722213761797,15.96,188.59,188.54,12.18]
[1722213762879,45.34,188.58,188.53,12.18]
[1722213765692,20.0,188.56,188.41,1.06093063]
[1722213766012,0.34,188.55,188.51,12.18]
[1722213767795,0.34,188.55,188.46,48.72]
[1722213767996,0.34,188.55,188.5,12.18]
[1722213769007,0.34,188.55,188.51,12.18]
[1722213770313,0.34,188.55,188.52,12.18]
[1722213770498,15.96,188.57,188.52,12.18]
[1722213771814,45.0,188.56,188.53,12.18]
[1722213772195,0.34,188.55,188.52,12.18]
[1722213779027,0.34,188.55,188.51,12.18]
[1722213779199,0.34,188.55,188.5,12.18]
[1722213781196,0.34,188.55,188.46,48.72]
[1722213781197,0.34,188.55,188.52,12.18]
[1722213781507,0.34,188.55,188.51,12.18]
[1722213781921,0.34,188.55,188.5,12.18]
[1722213783006,0.34,188.55,188.51,12.18]
[1722213784318,0.34,188.55,188.41,2.10477008]
[1722213784629,0.34,188.55,188.5,12.18]
[1722213785124,20.0,188.52,188.4,8.69183331]
[1722213785294,15.96,188.49,188.39,16.2808]
[1722213785502,0.34,188.48,188.44,12.18]
[1722213785723,45.34,188.48,188.44,12.18]
[1722213786536,0.34,188.48,188.44,12.18]
[1722213786703,0.34,188.49,188.47,12.18]
[1722213786904,0.34,188.49,188.48,12.18]
[1722213790333,0.34,188.49,188.43,22.8188]
[1722213790501,0.34,188.49,188.48,12.18]
[1722213794110,0.34,188.49,188.43,6.5711]
[1722213794308,0.34,188.49,188.46,12.18]
[1722213795944,0.34,188.49,188.45,12.18]
[1722213796235,45.34,188.5,188.46,12.18]
[1722213798212,81.3,188.5,188.38,15.464]
[1722213798409,20.0,188.49,188.42,12.18]
[1722213798632,45.34,188.48,188.42,12.18]
[1722213798965,45.34,188.48,188.44,12.18]
[1722213799117,0.34,188.48,188.44,12.18]
[1722213799312,0.34,188.48,188.43,12.18]
[1722213799821,0.34,188.48,188.44,12.18]
[1722213800228,20.0,188.47,188.37,48.72]
[1722213800436,45.34,188.46,188.41,12.18]
[1722213800620,15.5599,188.45,188.41,12.18]
[1722213800936,0.34,188.44,188.41,12.18]
[1722213801239,0.34,188.44,188.42,12.18]
[1722213801419,0.34,188.44,188.41,12.18]
[1722213801815,45.34,188.44,188.41,12.18]
[1722213802032,45.34,188.44,188.4,12.18]
[1722213802537,61.3,188.44,188.34,22.8178]
[1722213802713,61.3,188.44,188.39,12.18]
[1722213803327,20.0,188.43,188.38,12.18]
[1722213803530,45.17,188.42,188.37,12.18]